fUST/lending_fUST_20240311
["ID","MTS","AMOUNT","RATE_DAILY","PERIOD"]
[318270620,1710153043356,-1001.26830492,0.00023999,2]
[318270622,1710153043366,-2774.56088769,0.00023999,2]
[318270624,1710153043381,-500.0,0.00023999,2]
[318270627,1710153043391,-500.0,0.00023999,2]
[318270630,1710153043401,-500.0,0.00023999,2]
[318270632,1710153043411,-198.39969383,0.00023999,2]
[318270635,1710153043421,-500.0,0.00023999,2]
[318270638,1710153043431,-500.0,0.00023999,2]
[318270640,1710153043440,-500.0,0.00023999,2]
[318270641,1710153043448,-500.0,0.00023999,2]
[318270643,1710153043458,-500.0,0.00023999,2]
[318270645,1710153043468,-500.0,0.00023999,2]
[318270646,1710153043478,-500.48159843,0.00023999,2]
[318270648,1710153043488,-500.0,0.00023999,2]
[318270649,1710153043499,-500.0,0.00023999,2]
[318270651,1710153043509,-500.0,0.00023999,2]
[318270653,1710153043519,-500.0,0.00023999,2]
[318270654,1710153043528,-110906.57028395,0.00024,10]
[318271625,1710153054547,155.13962566,0.000189,2]
[318272124,1710153059609,155.42023558,0.000189,2]
[318278594,1710153227038,40935.77226738,0.000189,2]
[318278652,1710153275129,52376.88131631,0.000189,2]
[318278653,1710153491125,2135.0,0.0002001,2]
[318278654,1710153576455,2669.0744293,0.0002001,10]
[318278655,1710153706215,1000.0,0.0002001,2]
[318278656,1710153998412,205.96794474,0.000189,2]
[318278657,1710154143765,28848.54567554,0.0002,7]
[318278707,1710154232499,-411.57462861,0.00020135,2]
[318278709,1710154232509,-690.59173185,0.00020135,2]
[318278711,1710154232518,-155.13652014,0.00020135,2]
[318278713,1710154232527,-1772.2993493,0.00020136,2]
[318278715,1710154232536,-884.38898759,0.00020136,2]
[318278717,1710154232545,-429.31792098,0.00020137,2]
[318278719,1710154232554,-155.13652014,0.00020138,2]
[318278721,1710154232565,-218.54547033,0.00020139,2]
[318278723,1710154232574,-380.69748174,0.00020139,2]
[318278726,1710154232585,-1501.43623503,0.00020139,2]
[318278727,1710154232595,-3751.87342082,0.0002014,2]
[318278746,1710154232733,-4734.29886767,0.0002014,2]
[318278748,1710154232742,-3392.52086169,0.00020147,2]
[318278750,1710154232751,-178.693053,0.00020152,2]
[318278752,1710154232761,-177.509769,0.0002094,2]
[318278754,1710154232771,-3942.54927916,0.00021,2]
[318278756,1710154232780,-2351.9036548,0.00021076,2]
[318278758,1710154232789,-3927.9677765,0.00021177,2]
[318278760,1710154232798,-151.41177499,0.00021768,2]
[318278762,1710154232808,-2000.0,0.00021782,2]
[318278764,1710154232819,-2000.0,0.00021964,2]
[318278766,1710154232828,-212.0,0.00022,2]
[318278768,1710154232838,-2000.0,0.00022146,2]
[318278770,1710154232847,-212.0,0.00022192,2]
[318278772,1710154232856,-2000.0,0.00022328,2]
[318278774,1710154232866,-2000.0,0.0002251,2]
[318278776,1710154232876,-2000.0,0.00022692,2]
[318278778,1710154232885,-2000.0,0.00022874,2]
[318278780,1710154232894,-1001.26830492,0.00023013,2]
[318278782,1710154232904,-212.0,0.00023014,2]
[318278784,1710154232913,-2000.0,0.00023056,2]
[318278786,1710154232922,-2000.0,0.00023238,2]
[318278788,1710154232931,-159.532694,0.0002333,2]
[318278790,1710154232940,-237.4736,0.0002333,2]
[318278792,1710154232950,-1310.87036427,0.0002342,2]
[318278794,1710154232962,-689.12963573,0.0002342,2]
[318278797,1710154232972,-500.0,0.00023561,2]
[318278799,1710154232981,-500.0,0.00023561,2]
[318278800,1710154232991,-2000.0,0.00023602,2]
[318278802,1710154233000,-3500.0,0.00023784,2]
[318278804,1710154233010,-70.10676965,0.00023797,2]
[318279386,1710154239061,-126.93333318,0.00023797,2]
[318279388,1710154239071,-3571.58252178,0.00023842,2]
[318279390,1710154239080,-218.92941117,0.0002388,2]
[318279392,1710154239089,-500.0,0.00023896,2]
[318279394,1710154239098,-500.0,0.00023896,2]
[318279396,1710154239107,-500.0,0.00023896,2]
[318279398,1710154239116,-500.0,0.00023896,2]
[318279400,1710154239125,-500.0,0.00023896,2]
[318279402,1710154239134,-500.0,0.00023896,2]
[318279404,1710154239143,-500.0,0.00023896,2]
[318279406,1710154239153,-500.0,0.00023896,2]
[318279408,1710154239162,-500.0,0.00023896,2]
[318279410,1710154239171,-500.0,0.00023896,2]
[318279412,1710154239180,-500.0,0.00023896,2]
[318279414,1710154239189,-500.0,0.00023896,2]
[318279416,1710154239198,-620.0,0.00023896,2]
[318279418,1710154239208,-500.0,0.00023896,2]
[318279420,1710154239217,-500.0,0.00023896,2]
[318279422,1710154239226,-500.0,0.00023896,2]
[318279424,1710154239235,-500.0,0.00023896,2]
[318279426,1710154239244,-500.0,0.00023896,2]
[318279428,1710154239253,-363.94672937,0.00023896,2]
[318279430,1710154239265,-136.05327063,0.00023896,2]
[318279432,1710154239273,-500.0,0.00023896,2]
[318279434,1710154239283,-500.0,0.00023896,2]
[318279436,1710154239291,-300.0,0.00023896,2]
[318279438,1710154239300,-500.0,0.00023896,2]
[318279440,1710154239309,-500.0,0.00023896,2]
[318279442,1710154239319,-239.78289173,0.00023896,2]
[318279444,1710154239327,-430.0,0.00023896,2]
[318279446,1710154239336,-500.0,0.00023896,2]
[318279448,1710154239344,-394.16508554,0.00023896,2]
[318279450,1710154239357,-105.83491446,0.00023896,2]
[318279452,1710154239366,-194.52482575,0.00023896,2]
[318279454,1710154239374,-335.67016357,0.00023896,2]
[318279456,1710154239386,-164.32983643,0.00023896,2]
[318279458,1710154239395,-500.0,0.00023896,2]
[318279460,1710154239403,-324.58900142,0.00023896,2]
[318279577,1710154240463,-175.41099858,0.00023896,2]
[318279579,1710154240473,-500.0,0.00023896,2]
[318279581,1710154240482,-500.0,0.00023896,2]
[318279583,1710154240491,-1069.66253688,0.00023898,2]
[318279585,1710154240500,-500.0,0.00023899,2]
[318279587,1710154240509,-500.0,0.00023899,2]
[318279588,1710154240519,-500.0,0.00023899,2]
[318279590,1710154240528,-500.0,0.00023899,2]
[318279593,1710154240539,-500.0,0.00023899,2]
[318279595,1710154240549,-500.0,0.00023899,2]
[318279596,1710154240558,-500.47713868,0.00023899,2]
[318279598,1710154240567,-522.36792467,0.00023899,2]
[318279600,1710154240576,-202.93900199,0.00023899,2]
[318279624,1710154240796,-297.06099801,0.00023899,2]
[318279626,1710154240806,-81.73259454,0.00023899,2]
[318279628,1710154240817,-261.546,0.00023899,2]
[318279631,1710154240829,-156.72140546,0.00023899,2]
[318279633,1710154240838,-500.0,0.00023899,2]
[318279635,1710154240847,-500.0,0.00023899,2]
[318279637,1710154240858,-500.0,0.00023899,2]
[318279639,1710154240867,-169.54422804,0.00023899,2]
[318279641,1710154240876,-500.0,0.00023899,2]
[318279642,1710154240885,-501.66245363,0.00023899,2]
[318279644,1710154240894,-500.0,0.00023899,2]
[318279646,1710154240903,-500.0,0.00023899,2]
[318279648,1710154240912,-500.0,0.00023899,2]
[318279650,1710154240922,-500.0,0.00023899,2]
[318279652,1710154240931,-500.0,0.00023899,2]
[318279654,1710154240940,-561.337233,0.00023899,2]
[318279656,1710154240949,-500.0,0.00023899,2]
[318279658,1710154240958,-500.0,0.00023899,2]
[318279660,1710154240967,-500.0,0.00023899,2]
[318279662,1710154240976,-500.0,0.00023899,2]
[318279664,1710154240985,-500.0,0.00023899,2]
[318279666,1710154240994,-500.0,0.00023899,2]
[318279668,1710154241003,-500.0,0.00023899,2]
[318279670,1710154241012,-500.0,0.00023899,2]
[318279672,1710154241021,-500.0,0.00023899,2]
[318279674,1710154241030,-398.12,0.00023899,2]
[318279676,1710154241039,-500.0,0.00023899,2]
[318279678,1710154241048,-500.0,0.00023899,2]
[318279680,1710154241058,-500.0,0.00023899,2]
[318279682,1710154241070,-500.0,0.00023899,2]
[318279684,1710154241078,-500.0,0.00023899,2]
[318279686,1710154241087,-500.0,0.00023899,2]
[318279688,1710154241096,-500.0,0.00023899,2]
[318279690,1710154241105,-500.0,0.00023899,2]
[318279692,1710154241114,-243.8064238,0.00023899,2]
[318279694,1710154241123,-500.0,0.00023899,2]
[318279696,1710154241132,-500.0,0.00023899,2]
[318279698,1710154241141,-500.0,0.00023899,2]
[318279700,1710154241150,-500.0,0.00023899,2]
[318279702,1710154241160,-500.0,0.00023899,2]
[318279704,1710154241170,-500.0,0.00023899,2]
[318279706,1710154241179,-269.36715738,0.00023899,2]
[318279708,1710154241188,-500.0,0.00023899,2]
[318279709,1710154241197,-500.0,0.00023899,2]
[318279711,1710154241207,-500.0,0.00023899,2]
[318279713,1710154241218,-500.0,0.00023899,2]
[318279715,1710154241228,-500.0,0.00023899,2]
[318279717,1710154241238,-500.0,0.00023899,2]
[318279719,1710154241248,-500.0,0.00023899,2]
[318279721,1710154241257,-500.0,0.00023899,2]
[318279723,1710154241267,-637.73749432,0.00023899,2]
[318279725,1710154241277,-500.0,0.00023899,2]
[318279727,1710154241286,-500.0,0.00023899,2]
[318279729,1710154241295,-500.0,0.00023899,2]
[318279731,1710154241304,-500.0,0.00023899,2]
[318279733,1710154241313,-500.0,0.00023899,2]
[318279735,1710154241323,-500.0,0.00023899,2]
[318279737,1710154241332,-570.81,0.00023899,2]
[318279739,1710154241341,-570.81,0.00023899,2]
[318279741,1710154241350,-570.81,0.00023899,2]
[318279743,1710154241363,-570.81,0.00023899,2]
[318279745,1710154241373,-570.81,0.00023899,2]
[318279747,1710154241382,-570.81,0.00023899,2]
[318279749,1710154241391,-185118.2519363,0.000239,2]
[318279751,1710154241400,-205.96794474,0.000239,2]
[318279753,1710154241409,-4301.8577015,0.000239,2]
[318279755,1710154241420,-344.5,0.00023998,2]
[318279757,1710154241429,-321.93735775,0.00023998,2]
[318279759,1710154241437,-927.97428513,0.00023998,2]
[318279761,1710154241446,-188.44397178,0.00023998,2]
[318279763,1710154241456,-1668.60545366,0.00023998,2]
[318279765,1710154241465,-500.0,0.00023998,2]
[318279767,1710154241474,-239.85472817,0.00023998,7]
[318279769,1710154241483,-500.0,0.00023998,2]
[318279771,1710154241492,-284.24,0.00023998,2]
[318279773,1710154241501,-500.0,0.00023998,2]
[318279775,1710154241511,-500.0,0.00023998,2]
[318279777,1710154241520,-500.0,0.00023998,2]
[318279787,1710154241613,-500.0,0.00023998,2]
[318279789,1710154241623,-500.0,0.00023998,2]
[318279792,1710154241639,-500.0,0.00023998,2]
[318279794,1710154241655,-500.0,0.00023998,2]
[318279796,1710154241665,-500.0,0.00023998,2]
[318279798,1710154241674,-500.0,0.00023998,2]
[318279801,1710154241687,-500.0,0.00023998,2]
[318279803,1710154241697,-500.0,0.00023998,2]
[318279805,1710154241706,-500.0,0.00023998,2]
[318279807,1710154241718,-570.81,0.00023998,2]
[318279809,1710154241728,-570.81,0.00023998,2]
[318279811,1710154241740,-5577.181826,0.00023999,2]
[318279813,1710154241750,-151.0,0.00023999,2]
[318279815,1710154241760,-151.0,0.00023999,2]
[318279817,1710154241770,-151.0,0.00023999,2]
[318279819,1710154241780,-151.0,0.00023999,2]
[318279821,1710154241790,-151.0,0.00023999,2]
[318279823,1710154241800,-151.0,0.00023999,2]
[318279825,1710154241809,-151.0,0.00023999,2]
[318279827,1710154241822,-151.0,0.00023999,2]
[318279829,1710154241833,-151.0,0.00023999,2]
[318279831,1710154241842,-151.0,0.00023999,2]
[318279833,1710154241852,-355.58697149,0.00023999,2]
[318279835,1710154241861,-500.24017723,0.00023999,2]
[318279837,1710154241871,-499.6797313,0.00023999,2]
[318279839,1710154241880,-539.92345668,0.00023999,2]
[318279841,1710154241889,-500.0,0.00023999,2]
[318279843,1710154241899,-516.04717866,0.00023999,2]
[318279845,1710154241910,-500.0,0.00023999,2]
[318279847,1710154241919,-500.0,0.00023999,2]
[318279849,1710154241929,-500.0,0.00023999,2]
[318279851,1710154241938,-500.0,0.00023999,2]
[318279853,1710154241948,-500.0,0.00023999,2]
[318279855,1710154241957,-500.0,0.00023999,2]
[318279857,1710154241968,-500.0,0.00023999,2]
[318279859,1710154241977,-584.97811089,0.00023999,2]
[318279861,1710154241987,-500.0,0.00023999,2]
[318279863,1710154241997,-500.0,0.00023999,2]
[318279865,1710154242008,-500.0,0.00023999,2]
[318279867,1710154242018,-500.0,0.00023999,2]
[318279869,1710154242027,-500.0,0.00023999,2]
[318279871,1710154242036,-500.0,0.00023999,2]
[318279873,1710154242045,-500.0,0.00023999,2]
[318279875,1710154242055,-500.0,0.00023999,2]
[318279877,1710154242065,-500.0,0.00023999,2]
[318279879,1710154242079,-500.0,0.00023999,2]
[318279881,1710154242089,-500.0,0.00023999,2]
[318279883,1710154242099,-500.0,0.00023999,2]
[318279885,1710154242109,-573.14,0.00023999,2]
[318279887,1710154242118,-500.0,0.00023999,2]
[318279889,1710154242128,-500.0,0.00023999,2]
[318279891,1710154242138,-500.0,0.00023999,2]
[318279893,1710154242147,-500.0,0.00023999,2]
[318279895,1710154242156,-500.0,0.00023999,2]
[318279897,1710154242165,-500.0,0.00023999,2]
[318279899,1710154242174,-500.0,0.00023999,2]
[318279901,1710154242183,-484.68,0.00023999,2]
[318279903,1710154242192,-570.81,0.00023999,2]
[318279905,1710154242202,-570.81,0.00023999,2]
[318279907,1710154242211,-570.81,0.00023999,2]
[318279909,1710154242221,-570.81,0.00023999,2]
[318279910,1710154242230,-570.81,0.00023999,2]
[318279912,1710154242240,-570.81,0.00023999,2]
[318279914,1710154242250,-570.81,0.00023999,2]
[318279916,1710154242259,-570.81,0.00023999,2]
[318279918,1710154242269,-570.81,0.00023999,2]
[318279920,1710154242278,-570.81,0.00023999,2]
[318279922,1710154242287,-108.2818171,0.00023999,2]
[318279929,1710154242337,-306.43499592,0.00023999,2]
[318280081,1710154243926,-156.09318698,0.00023999,2]
[318280083,1710154243936,-548.8321641,0.00023999,2]
[318280085,1710154243948,-21.9778359,0.00023999,2]
[318280088,1710154243958,-523.38073811,0.00023999,2]
[318280090,1710154243969,-47.42926189,0.00023999,2]
[318280092,1710154243978,-570.81,0.00023999,2]
[318280094,1710154243987,-570.81,0.00023999,2]
[318280096,1710154243996,-570.81,0.00023999,2]
[318280099,1710154244006,-5069.14475946,0.00024,10]
[318280102,1710154244019,-4410.0,0.00024,10]
[318280104,1710154244031,-12126.32917348,0.00024,10]
[318280437,1710154247439,-269.34384701,0.00023998,2]
[318280439,1710154247449,-429.31792098,0.00023999,2]
[318280441,1710154247459,-690.59173185,0.00023999,2]
[318280443,1710154247469,-38333.78524932,0.00024,10]
[318280452,1710154247558,-616.46971598,0.00024,10]
[318283138,1710155438613,-690.59173185,0.00020458,2]
[318283140,1710155438622,-155.14117847,0.00020459,2]
[318283142,1710155438631,-13.46708968,0.00020459,2]
[318283147,1710155438673,-884.38898759,0.00020458,2]
[318283149,1710155438682,-1758.83225962,0.00020459,2]
[318283151,1710155438691,-274.38308574,0.0002046,2]
[318283153,1710155438700,-1882.13371677,0.0002046,2]
[318283156,1710155438709,-8486.17228849,0.00020461,2]
[318283158,1710155438718,-10883.26022428,0.00020469,2]
[318283229,1710155443718,-14016.73977572,0.00020469,2]
[318283230,1710155443728,-263.45938667,0.000219,2]
[318283231,1710155443739,-17057.63386872,0.00023,2]
[318283232,1710155443748,-17687.0,0.00023,2]
[318283233,1710155443758,-172.357271,0.0002333,2]
[318283234,1710155443768,-172.357271,0.00023621,2]
[318283235,1710155443777,-500.0,0.00023899,2]
[318283236,1710155443786,-500.0,0.00023899,2]
[318283237,1710155443796,-200.0,0.00023899,2]
[318283238,1710155443811,-180.0,0.00023899,2]
[318283239,1710155443824,-466.05831397,0.00023899,2]
[318283240,1710155443837,-270.0,0.00023899,2]
[318283241,1710155443851,-193.30921019,0.00023899,2]
[318283242,1710155443862,-8063.38351493,0.000239,2]
[318283243,1710155443875,-172.357271,0.00023913,2]
[318283244,1710155443886,-1108.31362091,0.00023998,2]
[318283245,1710155443899,-428.8675065,0.00023998,2]
[318283246,1710155443911,-1352.85424475,0.00023998,2]
[318283247,1710155443923,-186.40511874,0.00023998,2]
[318283248,1710155443933,-310.14732482,0.00023998,2]
[318283249,1710155443943,-160.19387848,0.00023998,2]
[318283250,1710155443953,-218.38674469,0.00023999,2]
[318283251,1710155443965,-251.78679995,0.00023999,2]
[318283252,1710155443977,-500.0,0.00023999,2]
[318283253,1710155443988,-500.0,0.00023999,2]
[318283254,1710155443999,-500.48159843,0.00023999,2]
[318283255,1710155444011,-500.0,0.00023999,2]
[318283256,1710155444021,-500.0,0.00023999,2]
[318283257,1710155444033,-500.0,0.00023999,2]
[318283258,1710155444046,-500.0,0.00023999,2]
[318283259,1710155444057,-500.0,0.00023999,2]
[318283260,1710155444068,-500.0,0.00023999,2]
[318283261,1710155444080,-500.0,0.00023999,2]
[318283262,1710155444095,-500.0,0.00023999,2]
[318283263,1710155444106,-500.0,0.00023999,2]
[318283264,1710155444116,-500.0,0.00023999,2]
[318283265,1710155444127,-500.0,0.00023999,2]
[318283266,1710155444137,-500.0,0.00023999,2]
[318283267,1710155444148,-499.90991817,0.00023999,2]
[318283268,1710155444159,-56516.84788754,0.00024,10]
[318283269,1710155444174,-611.0,0.00024,10]
[318283270,1710155444186,-716.78564171,0.00024,10]
[318283271,1710155444571,392.88114895,0.000189,2]
[318283363,1710156023614,155.10702385,0.000189,2]
[318283364,1710156041598,155.37512735,0.000189,2]
[318283365,1710156088811,178.6395848,0.00019965,2]
[318283366,1710156244753,10000.0,0.0002,2]
[318283369,1710156348248,437.56035708,0.000189,2]
[318283370,1710156457522,24900.0,0.0001997,2]
[318283504,1710156631887,-884.38898759,0.00020942,2]
[318283506,1710156631896,-6338.22240729,0.00020943,2]
[318283509,1710156631908,-2147.9498812,0.00020943,2]
[318283511,1710156631918,-228.65257145,0.00020943,2]
[318283513,1710156631927,-155.13807288,0.00020943,2]
[318283515,1710156631936,-155.13807288,0.00020943,2]
[318283517,1710156631946,-679.62553365,0.00020944,2]
[318283519,1710156631958,-1202.50818312,0.00020944,2]
[318283521,1710156631968,-155.13807288,0.00020944,2]
[318283523,1710156631977,-690.59173185,0.00020945,2]
[318283525,1710156631987,-485.289097,0.00020946,2]
[318283527,1710156631997,-429.31792098,0.00020946,2]
[318283529,1710156632007,-218.54547033,0.00020946,2]
[318283530,1710156632017,-1772.2993493,0.00020947,2]
[318283532,1710156632027,-155.13807288,0.00020947,2]
[318283534,1710156632036,-155.13807288,0.00020947,2]
[318283536,1710156632045,-294.83074187,0.00020948,2]
[318283537,1710156632055,-39896.06599963,0.00020982,2]
[318283539,1710156632064,-162.218824,0.00021007,2]
[318283541,1710156632075,-7236.25692831,0.00021995,2]
[318283543,1710156632084,-413.0,0.00022,2]
[318283544,1710156632093,-413.0,0.00022192,2]
[318283546,1710156632103,-336.76153249,0.00022798,2]
[318283548,1710156632113,-648.98547869,0.00022842,30]
[318283550,1710156632123,-413.0,0.00023014,2]
[318283551,1710156632133,-2554.54,0.00023261,4]
[318283553,1710156632143,-5000.0,0.00023278,5]
[318283555,1710156632153,-160.672379,0.0002333,2]
[318283557,1710156632163,-172.357271,0.0002333,2]
[318283559,1710156632173,-310.239139,0.00023507,2]
[318283560,1710156632182,-500.0,0.0002356,2]
[318283562,1710156632192,-500.0,0.0002356,2]
[318283564,1710156632202,-270.0,0.0002356,2]
[318283566,1710156632212,-200.0,0.0002356,2]
[318283568,1710156632221,-193.30921019,0.0002356,2]
[318283570,1710156632231,-464.86037434,0.0002356,2]
[318283571,1710156632240,-466.05831397,0.0002356,2]
[318283573,1710156632250,-502.65166085,0.00023561,2]
[318283575,1710156632260,-205.15916612,0.00023561,2]
[318283577,1710156632269,-624.0422875,0.00023561,2]
[318283579,1710156632278,-530.47643432,0.00023561,2]
[318283580,1710156632287,-500.0,0.00023561,2]
[318283582,1710156632297,-500.0,0.00023561,2]
[318283584,1710156632306,-500.0,0.00023561,2]
[318283587,1710156632326,-500.0,0.00023561,2]
[318283589,1710156632337,-500.0,0.00023561,2]
[318283591,1710156632347,-500.0,0.00023561,2]
[318283592,1710156632357,-500.32372021,0.00023561,2]
[318283594,1710156632368,-500.0,0.00023561,2]
[318283596,1710156632378,-500.0,0.00023561,2]
[318283598,1710156632392,-500.0,0.00023561,2]
[318283600,1710156632402,-500.0,0.00023561,2]
[318283602,1710156632411,-500.0,0.00023561,2]
[318283603,1710156632421,-500.0,0.00023561,2]
[318283605,1710156632432,-1071.26,0.00023561,2]
[318283607,1710156632441,-1071.26,0.00023561,2]
[318283609,1710156632451,-409.44958154,0.00023561,2]
[318283611,1710156632462,-575.18897731,0.00023561,2]
[318283613,1710156632471,-500.0,0.00023561,2]
[318283614,1710156632481,-500.0,0.00023561,2]
[318283616,1710156632492,-500.0,0.00023561,2]
[318283618,1710156632502,-500.0,0.00023561,2]
[318283620,1710156632512,-500.0,0.00023561,2]
[318283622,1710156632521,-500.0,0.00023561,2]
[318283623,1710156632531,-500.0,0.00023561,2]
[318283625,1710156632541,-506.82342126,0.00023561,2]
[318283627,1710156632550,-500.0,0.00023561,2]
[318283628,1710156632560,-500.0,0.00023561,2]
[318283630,1710156632569,-500.0,0.00023561,2]
[318283632,1710156632580,-500.0,0.00023561,2]
[318283634,1710156632590,-500.0,0.00023561,2]
[318283636,1710156632599,-500.0,0.00023561,2]
[318283638,1710156632610,-500.0,0.00023561,2]
[318283640,1710156632619,-500.0,0.00023561,2]
[318283642,1710156632629,-306.0,0.00023644,2]
[318283644,1710156632640,-153.0,0.00023644,2]
[318283646,1710156632649,-401.8677449,0.00023644,2]
[318283648,1710156632659,-153.0,0.00023644,2]
[318283650,1710156632671,-153.0,0.00023644,2]
[318283651,1710156632680,-153.0,0.00023644,2]
[318283653,1710156632689,-153.0,0.00023644,2]
[318283655,1710156632699,-160.672379,0.00023718,2]
[318283657,1710156632708,-171.7288386,0.00023759,2]
[318283659,1710156632717,-519.70118632,0.00023799,2]
[318283661,1710156632726,-500.0,0.00023799,2]
[318283663,1710156632735,-500.0,0.00023799,2]
[318283664,1710156632745,-502.51970983,0.00023799,2]
[318283666,1710156632754,-39979.0,0.000238,3]
[318283668,1710156632764,-235.0258,0.00023879,2]
[318283670,1710156632773,-251.78679995,0.00023898,2]
[318283672,1710156632782,-500.0,0.00023898,2]
[318283674,1710156632791,-369.44395014,0.00023899,2]
[318283675,1710156632801,-500.56926419,0.00023899,2]
[318283677,1710156632810,-500.0,0.00023899,2]
[318283679,1710156632819,-500.40130322,0.00023899,2]
[318283681,1710156632828,-500.0,0.00023899,2]
[318283683,1710156632838,-500.0,0.00023899,2]
[318283684,1710156632847,-500.0,0.00023899,2]
[318283686,1710156632856,-500.0,0.00023899,2]
[318283688,1710156632866,-500.0,0.00023899,2]
[318283690,1710156632875,-500.0,0.00023899,2]
[318283692,1710156632886,-174.40182325,0.00023899,2]
[318283694,1710156632895,-500.0,0.00023899,2]
[318283696,1710156632904,-500.0,0.00023899,2]
[318283697,1710156632913,-500.0,0.00023899,2]
[318283699,1710156632923,-499.75291383,0.00023899,2]
[318283701,1710156632932,-211.41659541,0.00023899,2]
[318283703,1710156632941,-500.0,0.00023899,2]
[318283705,1710156632950,-499.04110166,0.00023899,2]
[318283707,1710156632959,-500.0,0.00023899,2]
[318283709,1710156632969,-500.0,0.00023899,2]
[318283711,1710156632978,-500.0,0.00023899,2]
[318283712,1710156632987,-500.0,0.00023899,2]
[318283714,1710156632997,-500.0,0.00023899,2]
[318283715,1710156633007,-507.84000334,0.00023899,2]
[318283716,1710156633017,-160.98,0.00023899,2]
[318283717,1710156633026,-500.0,0.00023899,2]
[318283718,1710156633036,-500.0,0.00023899,2]
[318283719,1710156633046,-500.0,0.00023899,2]
[318283721,1710156633055,-500.0,0.00023899,2]
[318283723,1710156633065,-500.0,0.00023899,2]
[318283724,1710156633073,-500.0,0.00023899,2]
[318283726,1710156633083,-502.31478218,0.00023899,2]
[318283728,1710156633092,-500.0,0.00023899,2]
[318283730,1710156633102,-500.0,0.00023899,2]
[318283732,1710156633110,-500.0,0.00023899,2]
[318283734,1710156633120,-552.624168,0.00023899,2]
[318283735,1710156633128,-1071.26,0.00023899,2]
[318283737,1710156633138,-434.86421061,0.00023899,2]
[318283739,1710156633147,-500.0,0.00023899,2]
[318283741,1710156633157,-500.0,0.00023899,2]
[318283743,1710156633166,-500.0,0.00023899,2]
[318283745,1710156633175,-500.0,0.00023899,2]
[318283746,1710156633185,-500.0,0.00023899,2]
[318283748,1710156633194,-505.42779081,0.00023899,2]
[318283750,1710156633204,-500.0,0.00023899,2]
[318283752,1710156633213,-500.0,0.00023899,2]
[318283754,1710156633222,-581.67374183,0.00023899,2]
[318283756,1710156633232,-500.0,0.00023899,2]
[318283758,1710156633241,-500.0,0.00023899,2]
[318283759,1710156633251,-20019.7631288,0.000239,2]
[318283761,1710156633260,-437.56035708,0.000239,2]
[318283763,1710156633269,-10235.22144795,0.000239,2]
[318283765,1710156633278,-172.357271,0.00023913,2]
[318283767,1710156633288,-500.0,0.00023997,2]
[318283769,1710156633296,-500.0,0.00023997,2]
[318283770,1710156633306,-500.0,0.00023997,2]
[318283772,1710156633315,-500.0,0.00023997,2]
[318283774,1710156633325,-500.0,0.00023997,2]
[318283776,1710156633334,-500.0,0.00023997,2]
[318283778,1710156633343,-500.0,0.00023997,2]
[318283780,1710156633352,-1071.26,0.00023997,2]
[318283782,1710156633362,-500.0,0.00023997,2]
[318283783,1710156633375,-500.0,0.00023997,2]
[318283785,1710156633384,-500.0,0.00023997,2]
[318283787,1710156633393,-500.0,0.00023997,2]
[318283789,1710156633403,-500.0,0.00023997,2]
[318283791,1710156633414,-500.0,0.00023997,2]
[318283792,1710156633424,-188.47150508,0.00023998,2]
[318283794,1710156633433,-228.26916841,0.00023998,2]